bitfinex-derivatives/quotes_SOLF0:USTF0_20250625
["timestamp","ask_amount","ask_price","bid_price","bid_amount"]
[1750889850226,2.68369109,143.78,143.71,38.88392986]
[1750889850422,2.68369109,143.77,143.71,38.88392986]
[1750889850627,6.9515,143.78,143.75,6.9524]
[1750889850928,2.68348233,143.77,143.75,6.9524]
[1750889851126,35.4,143.8,143.77,6.9517]
[1750889851326,38.88392986,143.83,143.75,38.88392986]
[1750889851633,2.6828572,143.82,143.75,38.88392986]
[1750889851927,6.9496,143.82,143.75,38.88392986]
[1750889852124,38.88392986,143.83,143.75,38.88392986]
[1750889852125,38.88392986,143.83,143.76,7.0272]
[1750889852324,45.83312986,143.83,143.76,7.0272]
[1750889853022,45.83312986,143.83,143.8,6.9502]
[1750889853322,6.9492,143.83,143.8,6.9502]
[1750889854529,6.9486,143.84,143.79,35.4]
[1750889854831,35.4,143.86,143.79,38.88392986]
[1750889855033,42.3476,143.86,143.83,6.9485]
[1750889855729,6.9476,143.86,143.83,6.9485]
[1750889856329,6.9475,143.86,143.83,6.9485]
[1750889856630,3.48392986,143.87,143.82,6.9492]
[1750889857424,6.9481,143.85,143.82,6.9492]
[1750889857629,3.47776246,143.86,143.81,6.9497]
[1750889858435,6.9482,143.85,143.82,6.9493]
[1750889860032,6.9485,143.84,143.82,6.9493]
[1750889863336,6.9485,143.84,143.81,6.9497]
[1750889863536,6.9485,143.84,143.79,38.87776246]
[1750889864034,6.9485,143.84,143.81,6.9496]
[1750889868436,3.47776246,143.86,143.81,6.9496]
[1750889869037,6.9487,143.84,143.81,6.9496]
[1750889870143,6.949,143.83,143.81,6.9496]
[1750889870334,3.47776246,143.86,143.77,3.47776246]
[1750889870535,5.62089691,143.85,143.79,3.4787215]
[1750889870843,6.9482,143.85,143.82,6.949]
[1750889872944,6.9485,143.84,143.82,6.949]
[1750889873138,6.9485,143.84,143.81,6.9496]
[1750889873747,6.9485,143.84,143.82,6.9493]
[1750889876143,5.72891581,143.88,143.83,6.9486]
[1750889876343,8.31319943,143.87,143.83,6.9486]
[1750889876547,6.948,143.85,143.83,6.9486]
[1750889876946,6.948,143.85,143.82,6.9491]
[1750889877147,6.948,143.85,143.8,3.47751581]
[1750889877747,2.68661432,143.87,143.8,3.47751581]
[1750889877942,5.62688404,143.86,143.82,3.47751581]
[1750889878144,6.947,143.87,143.84,6.948]
[1750889878346,5.63127238,143.86,143.82,38.77751581]
[1750889878553,35.4,143.89,143.82,38.77611857]
[1750889878853,12.57778652,143.88,143.85,6.9476]
[1750889879046,5.63128652,143.87,143.82,38.77611857]
[1750889879249,5.63128652,143.86,143.82,38.77611857]
[1750889879447,42.3462,143.89,143.82,38.77611857]
[1750889879649,5.63128751,143.88,143.82,38.77611857]
[1750889879853,5.63128751,143.87,143.82,38.77611857]
[1750889880149,6.9467,143.88,143.82,38.77611857]
[1750889880350,5.63150976,143.87,143.85,6.9476]
[1750889880552,35.4,143.89,143.82,38.77611857]
[1750889880553,38.87611857,143.89,143.82,35.3]
[1750889880848,5.63110832,143.88,143.82,35.3]
[1750889881050,6.9476,143.86,143.83,6.9486]
[1750889883155,6.9476,143.86,143.84,6.9484]
[1750889886653,2.3379,143.91,143.84,3.47611857]
[1750889886861,5.65323771,143.9,143.84,3.47611857]
[1750889887060,9.64729524,143.91,143.88,6.9462]
[1750889887353,5.65329587,143.9,143.88,6.9462]
[1750889887548,6.9453,143.91,143.88,6.9462]
[1750889887746,5.64315118,143.9,143.89,6.946]
[1750889888954,5.64481576,143.9,143.88,6.9462]
[1750889889151,38.7750934,143.92,143.88,6.9462]
[1750889889347,12.59037539,143.91,143.88,6.9462]
[1750889889551,5.64497539,143.9,143.88,6.9462]
[1750889889751,38.7750934,143.92,143.87,6.9467]
[1750889889955,6.9457,143.9,143.87,6.9467]
[1750889890267,6.9457,143.9,143.86,35.3]
[1750889890444,6.9457,143.9,143.87,6.9468]
[1750889891052,5.64802492,143.89,143.88,6.9464]
[1750889891762,6.9457,143.9,143.88,6.9464]
[1750889892363,5.66660503,143.89,143.86,35.3]
[1750889892569,5.66660503,143.88,143.83,37.5733]
[1750889892865,6.9468,143.88,143.83,37.5733]
[1750889893056,3.4750934,143.9,143.83,37.5733]
[1750889893257,5.66684553,143.89,143.83,37.5733]
[1750889893462,5.66684553,143.88,143.86,6.9471]
[1750889893658,5.66622885,143.87,143.86,6.9471]
[1750889894367,5.66622885,143.87,143.85,6.9477]
[1750889894663,3.4750934,143.9,143.85,6.9477]
[1750889894860,6.9468,143.88,143.83,37.5733]
[1750889895165,5.67106454,143.87,143.83,37.5733]
[1750889895467,6.947,143.87,143.83,37.5733]
[1750889895664,5.67719318,143.86,143.83,37.5733]
[1750889895856,6.947,143.87,143.83,37.5733]
[1750889896056,5.67707147,143.86,143.83,37.5733]
[1750889896256,6.947,143.87,143.83,37.5733]
[1750889896463,5.67107297,143.86,143.83,37.5733]
[1750889896662,6.947,143.87,143.83,37.5733]
[1750889896862,5.67103674,143.86,143.83,37.5733]
[1750889897165,6.947,143.87,143.85,6.9477]
[1750889897366,5.6704046,143.86,143.85,6.9477]
[1750889897566,5.67122388,143.86,143.85,6.9477]
[1750889898159,8.38483028,143.86,143.85,6.9477]
[1750889898359,8.38554122,143.86,143.85,6.9477]
[1750889900269,5.67122388,143.86,143.85,6.9477]
[1750889900462,6.9467,143.88,143.85,6.9477]
[1750889900664,8.43218688,143.87,143.85,6.9477]
[1750889900962,5.71863681,143.86,143.85,6.9477]
[1750889901163,5.71863681,143.86,143.83,37.5733]
[1750889901372,5.71863681,143.85,143.83,35.22]
[1750889901556,5.71863681,143.84,143.8,43.4932934]
[1750889901762,5.71863681,143.83,143.8,40.0182]
[1750889901963,5.71863681,143.82,143.81,6.9498]
[1750889903373,6.9485,143.84,143.82,6.9493]
[1750889903569,5.71175759,143.83,143.82,6.9493]
[1750889906264,10.4228934,143.86,143.83,6.9487]
[1750889906465,8.41840618,143.85,143.83,6.9487]
[1750889906662,5.71181055,143.84,143.83,6.9487]
[1750889907074,5.69446053,143.84,143.83,6.9487]
[1750889909275,5.6936983,143.84,143.83,6.9487]
[1750889912185,42.1668,143.88,143.85,6.9476]
[1750889912373,8.40590559,143.87,143.85,6.9476]
[1750889912572,8.40590559,143.86,143.85,6.9476]
[1750889912792,5.69795027,143.86,143.85,6.9476]
[1750889913077,8.40568994,143.86,143.85,6.9476]
[1750889913477,5.69795027,143.86,143.85,6.9476]
[1750889913780,8.40573787,143.86,143.85,6.9476]
[1750889914386,5.69795027,143.86,143.85,6.9476]
[1750889914582,8.40552169,143.86,143.85,6.9476]
[1750889914980,42.1668,143.88,143.85,6.9476]
[1750889915184,8.40879101,143.87,143.85,6.9476]
[1750889915384,5.69667128,143.86,143.85,6.9476]
[1750889917380,3.4750934,143.91,143.87,6.9465]
[1750889917591,8.41142188,143.9,143.84,38.7150934]
[1750889917785,43.4540934,143.93,143.84,38.7150934]
[1750889917786,8.41142188,143.89,143.84,176.3105934]
[1750889918090,5.69858211,143.88,143.84,176.3105934]
[1750889918284,5.69853522,143.87,143.84,176.3105934]
[1750889918483,6.9447,143.92,143.89,6.9459]
[1750889918687,13.15961767,143.91,143.89,6.9459]
[1750889918985,6.9447,143.92,143.89,6.9459]
[1750889918986,8.41158596,143.9,143.89,6.9459]
[1750889920779,8.24771876,143.9,143.89,6.9459]
[1750889921294,5.53551051,143.9,143.89,6.9459]
[1750889921589,8.25080895,143.9,143.89,6.9459]
[1750889922089,5.53551051,143.9,143.89,6.9459]
[1750889922679,42.1843,143.93,143.91,6.945]
[1750889922884,8.26780641,143.92,143.91,6.945]
[1750889923589,5.55366706,143.92,143.91,6.945]
[1750889923792,8.26765843,143.92,143.91,6.945]
[1750889924394,8.26765843,143.92,143.9,6.9453]
[1750889924598,5.55366706,143.91,143.9,6.9453]
[1750889925096,6.9443,143.93,143.9,6.9453]
[1750889925290,5.54961887,143.92,143.9,6.9453]
[1750889925491,6.9443,143.93,143.9,6.9453]
[1750889925693,5.54955489,143.92,143.9,6.9453]
[1750889925989,6.9443,143.93,143.9,6.9453]
[1750889926194,5.54896603,143.92,143.9,6.9453]
[1750889926398,6.9443,143.93,143.9,6.9453]
[1750889926596,5.54896603,143.92,143.9,6.9453]
[1750889926790,6.9443,143.93,143.9,6.9453]
[1750889926992,5.54896603,143.92,143.9,6.9453]
[1750889927191,6.9443,143.93,143.9,6.9453]
[1750889927393,5.54574869,143.92,143.9,6.9453]
[1750889927593,6.9443,143.93,143.9,6.9453]
[1750889927798,5.54581356,143.92,143.9,6.9453]
[1750889927999,6.9443,143.93,143.9,6.9453]
[1750889928198,5.54577349,143.92,143.9,6.9453]
[1750889928398,6.9443,143.93,143.9,6.9453]
[1750889928601,12.48979245,143.92,143.9,6.9453]
[1750889928803,6.9446,143.92,143.9,6.9453]
[1750889931495,3.4750934,143.92,143.85,40.9724934]
[1750889931797,8.26343996,143.91,143.85,40.9724934]
[1750889931997,5.55095096,143.9,143.85,40.9724934]
[1750889932193,3.4750934,143.92,143.85,37.4974]
[1750889932400,8.26325915,143.91,143.85,37.4974]
[1750889932603,5.55082528,143.9,143.85,37.4974]
[1750889932798,12.49637701,143.89,143.86,6.9472]
[1750889932995,6.946,143.89,143.86,6.9472]
[1750889933509,6.946,143.89,143.87,6.9469]
[1750889933708,3.4750934,143.9,143.85,35.16]
[1750889933898,8.26249879,143.89,143.85,35.16]
[1750889934098,5.55030705,143.88,143.85,35.16]
[1750889934296,3.4750934,143.9,143.85,35.16]
[1750889934607,3.4750934,143.9,143.85,42.1077]
[1750889934608,6.947,143.87,143.85,42.1077]
[1750889936398,6.9474,143.86,143.85,35.16]
[1750889936809,6.9474,143.86,143.82,170.18]
[1750889937413,6.9474,143.86,143.84,6.9481]
[1750889937609,6.9472,143.87,143.82,35.16]
[1750889938006,6.9472,143.87,143.84,6.948]
[1750889938706,6.9475,143.86,143.83,6.9487]
[1750889939012,6.9475,143.86,143.82,35.16]
[1750889939809,6.9475,143.86,143.83,6.9488]
[1750889940317,6.9475,143.86,143.82,35.16]
[1750889940719,3.4750934,143.88,143.82,35.16]
[1750889941109,6.947,143.87,143.84,6.948]
[1750889942625,3.4750934,143.9,143.82,38.6350934]
[1750889942813,8.2573118,143.89,143.82,38.6350934]
[1750889943024,3.4750934,143.9,143.82,38.6350934]
[1750889943025,6.9473,143.87,143.82,38.6350934]
[1750889943524,6.9473,143.87,143.84,6.9481]
[1750889943926,3.4750934,143.9,143.84,6.9481]
[1750889943927,6.9467,143.88,143.84,6.9481]
[1750889944627,6.9462,143.89,143.82,38.63621231]
[1750889944817,5.55061081,143.88,143.82,38.63621231]
[1750889945019,6.9462,143.89,143.82,38.63621231]
[1750889945216,5.5518777,143.88,143.82,38.63621231]
[1750889945520,6.9462,143.89,143.86,6.9472]
[1750889945822,5.5518777,143.88,143.86,6.9472]
[1750889946023,6.9462,143.89,143.86,6.9472]
[1750889946926,6.9462,143.89,143.87,6.9469]
[1750889948023,5.55085181,143.88,143.87,6.9469]
[1750889949223,5.55085181,143.88,143.86,6.9472]
[1750889949519,6.9464,143.89,143.86,6.9472]
[1750889949718,5.52741346,143.88,143.86,6.9472]
[1750889949917,6.9464,143.89,143.86,6.9472]
[1750889950116,5.52745344,143.88,143.86,6.9472]
[1750889950322,6.9464,143.89,143.87,6.9469]
[1750889950528,5.5274535,143.88,143.87,6.9469]
[1750889954628,5.5274535,143.88,143.86,6.9473]
[1750889954821,6.9464,143.89,143.86,6.9473]
[1750889955025,5.52990791,143.88,143.86,6.9473]
[1750889955322,6.9464,143.89,143.86,6.9473]
[1750889955525,12.47639579,143.88,143.86,6.9473]
[1750889955724,6.9465,143.88,143.86,6.9473]
[1750889960229,6.9465,143.88,143.82,35.16]
[1750889960528,12.48198498,143.87,143.85,9.17219345]
[1750889960726,6.9469,143.87,143.85,6.9476]
[1750889961430,6.9466,143.88,143.85,6.9476]
[1750889961730,5.53549657,143.87,143.85,6.9476]
[1750889961928,6.9466,143.88,143.86,6.9474]
[1750889962126,5.53545653,143.87,143.86,6.9474]
[1750889962336,5.53545653,143.87,143.85,6.9476]
[1750889962539,6.9466,143.88,143.85,6.9476]
[1750889962735,5.5352113,143.87,143.85,6.9476]
[1750889962925,6.9466,143.88,143.85,6.9476]
[1750889963222,5.5352113,143.87,143.85,6.9476]
[1750889963425,6.9466,143.88,143.86,6.9474]
[1750889963635,6.9462,143.89,143.86,6.9474]
[1750889963833,5.53633243,143.88,143.86,6.9474]
[1750889964035,6.9462,143.89,143.86,6.9474]
[1750889964336,15.19456066,143.88,143.86,6.9474]
[1750889964633,5.53633243,143.87,143.86,6.9474]
[1750889965134,6.9462,143.89,143.86,6.9474]
[1750889965328,5.53595582,143.88,143.86,6.9474]
[1750889965533,6.9462,143.89,143.86,6.9474]
[1750889965731,12.48245582,143.88,143.86,6.9474]
[1750889965929,6.9465,143.88,143.86,6.9474]
[1750889968736,5.53015434,143.87,143.86,6.9474]
[1750889969829,5.5322694,143.87,143.86,6.9474]
[1750889970136,5.5322694,143.87,143.85,6.9476]
[1750889970336,6.9465,143.88,143.85,6.9476]
[1750889970536,5.53198073,143.87,143.86,6.9474]
[1750889972339,8.24608988,143.87,143.86,6.9474]
[1750889972637,6.9465,143.88,143.86,6.9474]
[1750889972940,5.53618585,143.87,143.86,6.9474]
[1750889974136,6.9462,143.89,143.86,6.9474]
[1750889974337,8.07864739,143.88,143.86,6.9474]
[1750889974537,6.9462,143.89,143.86,6.9474]
[1750889974836,8.07859521,143.88,143.86,6.9474]
[1750889975037,6.9462,143.89,143.86,6.9474]
[1750889975236,8.07895521,143.88,143.86,6.9474]
[1750889975432,8.07895521,143.87,143.86,9.17199345]
[1750889976626,8.07895521,143.87,143.86,6.9474]
[1750889977341,5.36450461,143.87,143.86,6.9474]
[1750889978640,5.37774423,143.87,143.86,6.9474]
[1750889981444,5.37774423,143.87,143.86,9.17199345]
[1750889984447,5.37425691,143.87,143.86,6.9474]
[1750889987248,5.37298098,143.87,143.86,6.9474]
[1750889989049,6.9462,143.89,143.86,6.9474]
[1750889989242,14.68208464,143.88,143.86,6.9474]
[1750889989443,6.9465,143.88,143.86,6.9474]
[1750889990854,2.22459345,143.89,143.85,35.08]
[1750889991046,2.22459345,143.87,143.85,35.08]
[1750889991243,14.67907797,143.86,143.82,37.24544698]
[1750889991546,9.17314698,143.86,143.84,6.9483]
[1750889991847,5.72870164,143.89,143.85,2.22544698]
[1750889992054,12.45351772,143.88,143.86,9.17254698]
[1750889992349,7.71261654,143.87,143.86,9.17254698]
[1750889993552,7.71261654,143.87,143.86,6.9471]
[1750889995048,7.71219533,143.87,143.86,6.9471]
[1750889995250,7.71219533,143.87,143.84,35.02]
[1750889995454,2.22467125,143.88,143.84,35.02]
[1750889995654,12.44969832,143.87,143.84,35.02]
[1750889995853,6.9474,143.86,143.84,41.9681]
[1750889998753,2.22467125,143.86,143.81,39.59277125]
[1750889999073,7.70067347,143.85,143.81,37.24467125]
[1750889999358,2.22467125,143.86,143.81,37.24467125]
[1750889999653,7.70065911,143.85,143.81,37.24467125]
[1750889999853,6.9482,143.85,143.82,6.949]
[1750890000044,6.9482,143.85,143.82,2.22467125]
[1750890000242,6.9482,143.85,143.83,6.9485]
[1750890000655,2.22467125,143.88,143.84,2.22467125]
[1750890000856,7.69274973,143.87,143.84,2.22467125]
[1750890001062,6.9472,143.87,143.84,2.22467125]
[1750890002757,6.9472,143.87,143.85,6.9477]
[1750890009563,2.22467125,143.88,143.84,2.22467125]
[1750890009764,7.66282036,143.87,143.86,2.22467125]
[1750890009965,37.38467125,143.92,143.86,2.22467125]
[1750890010158,6.9455,143.9,143.88,6.9462]
[1750890010354,12.37398025,143.89,143.88,6.9462]
[1750890010557,7.66312093,143.89,143.88,6.9462]
[1750890010866,6.9455,143.9,143.88,6.9462]
[1750890011357,7.66543421,143.89,143.88,6.9462]
[1750890011753,7.66543421,143.89,143.87,9.17137125]
[1750890011960,6.946,143.89,143.87,6.9467]
[1750890013451,6.9464,143.88,143.86,6.9472]
[1750890014259,9.17033539,143.89,143.86,6.9472]
[1750890014460,7.67472433,143.88,143.87,6.9469]
[1750890015971,6.9462,143.89,143.87,6.9469]
[1750890016270,7.67775452,143.88,143.87,6.9469]
[1750890016471,7.67775452,143.88,143.86,6.9471]
[1750890016769,6.9462,143.89,143.86,6.9471]
[1750890017066,6.9474,143.86,143.84,9.17223539]
[1750890017262,6.9474,143.86,143.84,6.9481]
[1750890017465,6.9472,143.87,143.84,6.9481]
[1750890019066,6.9475,143.86,143.84,6.9481]
[1750890019766,6.9484,143.84,143.83,35.02]
[1750890020876,6.9484,143.84,143.83,41.9689]
[1750890021577,6.9481,143.85,143.83,41.9689]
[1750890026876,6.9481,143.85,143.83,44.19403964]
[1750890028578,6.9474,143.86,143.84,6.9484]
[1750890028780,6.9474,143.86,143.84,9.17353964]
[1750890029876,6.9479,143.85,143.84,9.17353964]
[1750890030177,6.9479,143.85,143.84,6.9484]
[1750890031276,5.69795848,143.89,143.85,6.9479]
[1750890031481,7.62836613,143.88,143.87,2.22513964]
[1750890031679,2.22513964,143.91,143.87,2.22513964]
[1750890031880,19.2856667,143.9,143.87,9.17183964]
[1750890032179,7.63449039,143.89,143.87,9.17183964]
[1750890032479,6.9459,143.9,143.87,9.17183964]
[1750890032679,14.58074112,143.89,143.87,9.17183964]
[1750890032979,6.946,143.89,143.87,9.17183964]
[1750890034681,6.946,143.89,143.87,6.9467]
[1750890039985,6.9457,143.9,143.87,2.22513964]
[1750890040179,2.50904394,143.89,143.87,2.22513964]
[1750890040386,2.22513964,143.93,143.88,2.22513964]
[1750890040580,18.0808974,143.92,143.89,2.22513964]
[1750890040879,12.37130868,143.91,143.9,6.9455]
[1750890041483,9.8623058,143.91,143.9,6.9455]
[1750890041683,12.37083681,143.91,143.9,6.9455]
[1750890041885,12.37251855,143.91,143.9,6.9455]
[1750890042281,7.63769277,143.91,143.9,6.9455]
[1750890043186,2.50837294,143.91,143.9,6.9455]
[1750890043885,7.63409037,143.91,143.9,6.9455]
[1750890044388,2.50837294,143.91,143.9,6.9455]
[1750890045289,2.50837294,143.91,143.86,6.919]
[1750890045491,2.22345327,143.91,143.87,2.22345327]
[1750890045988,6.9457,143.9,143.88,6.9462]
[1750890047286,6.946,143.89,143.87,9.17025327]
[1750890047482,6.946,143.89,143.87,6.9468]
[1750890048791,6.9464,143.88,143.86,6.9472]
[1750890052694,6.9462,143.89,143.87,6.9469]
[1750890052991,2.22345327,143.9,143.85,37.16345327]
[1750890053179,2.50747129,143.89,143.85,37.16345327]
[1750890053494,6.9463,143.89,143.86,6.947]
[1750890054598,6.9463,143.89,143.87,6.9469]
[1750890055988,6.9464,143.88,143.87,6.9469]
[1750890058401,6.9464,143.88,143.86,9.17055327]
[1750890059910,6.9469,143.87,143.85,44.11115327]
[1750890060911,2.22476592,143.86,143.82,4.60976592]
[1750890061098,34.86,143.91,143.81,122.17493333]
[1750890061099,2.22476592,143.83,143.81,122.17493333]
[1750890061417,6.9496,143.82,143.8,6.95]
[1750890064701,6.9496,143.82,143.79,6.9506]
[1750890064903,6.9499,143.81,143.78,37.3386]
[1750890065613,6.9499,143.81,143.79,6.9505]
[1750890068712,34.86,143.86,143.78,37.3386]
[1750890068916,7.55668761,143.85,143.78,37.3386]
[1750890069106,38.33907095,143.86,143.78,37.3386]
[1750890069308,6.9489,143.83,143.8,6.95]
[1750890069813,6.9494,143.82,143.8,6.95]
[1750890078024,6.9491,143.83,143.78,37.3386]
[1750890078222,43.40119912,143.86,143.78,40.81716952]
[1750890078425,38.33856952,143.86,143.78,40.81716952]
[1750890078623,43.40119912,143.86,143.78,40.81716952]
[1750890078920,43.40060686,143.86,143.78,40.81716952]
[1750890079324,43.40060686,143.86,143.8,6.95]
[1750890079823,6.9494,143.82,143.8,6.95]
[1750890084919,6.9491,143.83,143.81,6.9496]
[1750890085716,34.86,143.86,143.82,2.22638277]
[1750890085931,37.08638277,143.86,143.81,2.22638277]
[1750890086126,6.9486,143.84,143.81,9.17608277]
[1750890086327,6.9486,143.84,143.81,6.9497]
[1750890087127,6.9486,143.84,143.82,6.9493]
[1750890092429,43.40919947,143.86,143.78,37.3386]
[1750890092735,3.47811084,143.84,143.78,37.3386]
[1750890092936,6.9498,143.81,143.79,6.9505]
[1750890093626,6.9496,143.82,143.8,6.9503]
[1750890094332,6.9498,143.81,143.79,6.9505]
[1750890098437,6.9496,143.82,143.79,6.9505]
[1750890104938,3.47811084,143.84,143.78,41.8111]
[1750890105244,17.97422575,143.83,143.78,41.8111]
[1750890105442,6.9505,143.8,143.78,41.8111]
[1750890105840,3.47965274,143.84,143.78,34.86]
[1750890106039,6.9505,143.8,143.78,34.86]
[1750890106239,6.9505,143.8,143.75,21.16528473]
[1750890106240,6.9505,143.8,143.75,55.96528473]
[1750890107042,6.9509,143.79,143.75,55.96528473]
[1750890108148,6.9509,143.79,143.77,6.9515]
[1750890108448,4.69982043,143.82,143.75,55.96528473]
[1750890108646,7.59018838,143.81,143.77,6.9513]
[1750890108950,6.9504,143.8,143.77,6.9513]
[1750890113054,6.9509,143.79,143.77,6.9513]
[1750890114247,6.9509,143.79,143.77,9.17850568]
[1750890115147,6.9509,143.79,143.77,6.9513]
[1750890115548,6.9509,143.79,143.77,9.17850568]
[1750890116052,6.9509,143.79,143.77,6.9513]
[1750890118649,6.9509,143.79,143.77,9.17850568]
[1750890118852,6.9505,143.8,143.77,2.22720568]
[1750890119253,6.9505,143.8,143.77,9.17870568]
[1750890119942,6.9509,143.79,143.77,9.17870568]
[1750890121557,2.22720568,143.81,143.77,6.9515]
[1750890122650,2.22720568,143.81,143.77,9.17870568]
[1750890123355,2.22720568,143.81,143.78,6.9513]
[1750890123660,2.22720568,143.81,143.77,2.22720568]
[1750890124555,6.9509,143.79,143.77,9.17870568]
[1750890128256,34.74,143.83,143.78,2.22720568]
[1750890128457,2.22720568,143.85,143.8,2.22720568]
[1750890128652,12.27452041,143.84,143.81,2.22720568]
[1750890128958,14.52927145,143.83,143.81,2.22720568]
[1750890129257,6.9492,143.83,143.8,9.17609591]
[1750890129459,6.9495,143.82,143.8,9.17609591]
[1750890134653,6.9495,143.82,143.8,2.22609591]
[1750890134955,6.9491,143.83,143.8,2.22609591]
[1750890135462,6.9491,143.83,143.81,6.9498]
[1750890136753,6.9486,143.84,143.81,6.9498]
[1750890137058,2.50515461,143.83,143.81,6.9498]
[1750890137262,6.9476,143.86,143.82,2.22609591]
[1750890137456,2.50549673,143.85,143.83,2.22609591]
[1750890137660,2.22609591,143.88,143.84,6.9481]
[1750890137865,6.9476,143.86,143.84,6.9481]
[1750890144572,6.9472,143.87,143.84,6.9481]
[1750890144869,2.22609591,143.88,143.84,6.9481]
[1750890145066,9.86188844,143.87,143.83,9.17469591]
[1750890145269,2.22609591,143.87,143.83,9.17469591]
[1750890145665,2.22609591,143.87,143.82,9.17519591]
[1750890145865,4.7331596,143.86,143.82,9.17519591]
[1750890146168,2.22609591,143.86,143.82,9.17519591]
[1750890146565,6.9486,143.84,143.82,9.17519591]
[1750890146960,2.22609591,143.86,143.82,6.9491]
[1750890147663,2.22609591,143.85,143.82,6.9491]
[1750890148257,6.9487,143.84,143.82,6.9491]
[1750890149467,2.22609591,143.85,143.81,34.74]
[1750890149670,5.68129943,143.88,143.78,128.00083873]
[1750890149671,2.22609591,143.84,143.79,2.22609591]
[1750890149871,2.22609591,143.83,143.79,2.22609591]
[1750890150172,6.9498,143.82,143.8,6.95]
[1750890150370,6.9498,143.82,143.79,2.22609591]
[1750890150773,6.9498,143.81,143.79,2.22609591]
[1750890151269,6.9498,143.81,143.79,9.17659591]
[1750890151677,6.9503,143.8,143.79,2.22609591]
[1750890151970,2.22609591,143.83,143.79,9.17689591]
[1750890152472,6.9501,143.81,143.79,9.17689591]
[1750890154472,6.9504,143.8,143.78,34.68]
[1750890155469,6.9504,143.8,143.78,41.6313]
[1750890155679,6.9508,143.79,143.78,34.68]
[1750890155873,2.22609591,143.81,143.78,34.68]
[1750890156076,6.9505,143.8,143.77,9.17739591]
[1750890156677,6.9501,143.81,143.77,2.22609591]
[1750890156976,6.9501,143.81,143.78,2.22609591]
[1750890157177,2.22609591,143.82,143.78,2.22609591]
[1750890158172,6.9504,143.8,143.78,9.17709591]
[1750890163075,6.9508,143.79,143.78,2.22609591]
[1750890163283,2.22609591,143.79,143.74,2.22609591]
[1750890163784,6.9518,143.77,143.74,9.17889591]
[1750890164480,2.5090831,143.8,143.73,43.85959591]
[1750890164686,2.22609591,143.77,143.73,34.68]
[1750890164887,2.22609591,143.77,143.73,36.90609591]
[1750890165179,6.9528,143.75,143.73,43.85949591]
[1750890165484,6.9535,143.74,143.72,125.84546821]
[1750890165979,6.9545,143.72,143.7,36.90609591]
[1750890166180,2.22964378,143.73,143.68,2.22964378]
[1750890166381,2.22964378,143.72,143.68,2.22964378]
[1750890166582,2.22964378,143.72,143.67,34.68]
[1750890166785,2.22964378,143.71,143.67,43.86604378]
[1750890166986,2.22964378,143.72,143.68,2.22964378]
[1750890167184,2.22964378,143.73,143.68,2.22964378]
[1750890167788,2.22964378,143.73,143.68,9.18554378]
[1750890168196,3.48424618,143.74,143.68,6.9559]
[1750890169405,6.9555,143.7,143.67,41.6364]
[1750890170294,6.9555,143.7,143.68,6.956]
[1750890172501,6.9549,143.71,143.68,6.956]
[1750890172701,6.9549,143.71,143.69,6.9555]
[1750890173001,6.9549,143.71,143.67,34.68]
[1750890173395,6.9549,143.71,143.68,6.9559]
[1750890176803,6.9542,143.72,143.69,6.9554]
[1750890177404,6.955,143.71,143.68,6.9559]
[1750890178402,6.9551,143.7,143.68,6.9559]
[1750890178598,6.9551,143.7,143.67,41.6363]
[1750890178795,6.9551,143.7,143.67,34.68]
[1750890179799,6.9551,143.7,143.67,41.6362]
[1750890180206,39.4279,143.76,143.66,7.3346]
[1750890180207,38.14424618,143.72,143.66,7.3346]
[1750890180505,38.14424618,143.72,143.66,6.9571]
[1750890180693,38.14424618,143.72,143.64,172.40424618]
[1750890180899,6.9564,143.68,143.65,6.9573]
[1750890181406,6.9564,143.68,143.64,172.40424618]
[1750890181602,6.9564,143.68,143.65,6.9575]
[1750890181802,6.9564,143.68,143.64,172.40424618]
[1750890182203,6.9564,143.68,143.66,6.9568]
[1750890182402,34.66,143.72,143.66,3.48424618]
[1750890182806,34.66,143.72,143.7,6.955]
[1750890183709,41.6144,143.72,143.7,6.955]
[1750890183911,41.6144,143.72,143.69,6.9554]